Workbook

Sheet HeroPowerUpConfig
A1: ID | B1: HeroLevel | C1: ATKFactor | D1: HPFactor | E1: DEFFactor | F1: SHANBIFactor | G1: EXPFactor | H1: levelUpExp | I1: LevelupBasicPower
A2: int | B2: int | C2: float | D2: float | E2: float | F2: float | G2: float | H2: int | I2: int
M3: 2.83402
A4: ID | B4: 英雄等级 | C4: 攻击力倍率 | D4: 生命倍率 | E4: 防御倍率 | F4: 闪避倍率 | G4: 经验产出倍率 | H4: 升级所需经验值 （-1代表最大等级) | I4: 等级提升提供的评分A1 | J4: 总经验 | K4: =SUM(H5:H103) -> 500000 | L4: 成长率与经验倍率的放大指数 | M4: 2.47272 | N4: 单人升满r | O4: 100000
A5: 1 | B5: 1 | C5: 1 | D5: 10 | E5: =C5 -> 1 | F5: 1 | G5: 1 | H5: =IF(B5>99,0,ROUND(100*C5^M$4*0.1,0)*10) -> 100 | I5: =ROUND(300*C5,0) -> 300 | J5: 0
A6: 2 | B6: 2 | C6: 1.023531 | D6: 10.23531 | E6: =C6 -> 1.023531 | F6: 1 | G6: =E6 -> 1.023531 | H6: =IF(B6>99,0,ROUND(100*C6^M$4*0.1,0)*10) -> 110 | I6: =ROUND(300*C6,0) -> 307 | J6: =SUM(H$5:H5) -> 100 | K6: 进入等级 | L6: 10
A7: 3 | B7: 3 | C7: 1.047615708 | D7: 10.47615708 | E7: 1.047615708 | F7: 1 | G7: 1.047615708 | H7: 110 | I7: 314 | J7: =SUM(H$5:H6) -> 210 | K7: 完成等级 | L7: 20
A8: 4 | B8: 4 | C8: 1.072267153 | D8: 10.72267153 | E8: 1.072267153 | F8: 1 | G8: 1.072267153 | H8: 120 | I8: 322 | J8: =SUM(H$5:H7) -> 320 | K8: 总人数 | L8: 3
A9: 5 | B9: 5 | C9: 1.097498672 | D9: 10.97498672 | E9: 1.097498672 | F9: 1 | G9: 1.097498672 | H9: 130 | I9: 329 | J9: =SUM(H$5:H8) -> 440 | K9: 需要经验 | L9: =(VLOOKUP(L7,A:J,10,FALSE)-VLOOKUP(L6,A:J,10,FALSE))*L8 -> 6630
A10: 6 | B10: 6 | C10: 1.123323913 | D10: 11.23323913 | E10: 1.123323913 | F10: 1 | G10: 1.123323913 | H10: 130 | I10: 337 | J10: =SUM(H$5:H9) -> 570
A11: 7 | B11: 7 | C11: 1.149756848 | D11: 11.49756848 | E11: 1.149756848 | F11: 1 | G11: 1.149756848 | H11: 140 | I11: 345 | J11: =SUM(H$5:H10) -> 700
A12: 8 | B12: 8 | C12: 1.176811776 | D12: 11.76811776 | E12: 1.176811776 | F12: 1 | G12: 1.176811776 | H12: 150 | I12: 353 | J12: =SUM(H$5:H11) -> 840 | K12: 道具 | L12: ID | M12: 数量
A13: 9 | B13: 9 | C13: 1.204503334 | D13: 12.04503334 | E13: 1.204503334 | F13: 1 | G13: 1.204503334 | H13: 160 | I13: 361 | J13: =SUM(H$5:H12) -> 990 | K13: 经验水晶粉末 | L13: 2001 | N13: 100 | O13: 对英雄使用后获得100点英雄经验。
A14: 10 | B14: 10 | C14: 1.232846502 | D14: 12.32846502 | E14: 1.232846502 | F14: 1 | G14: 1.232846502 | H14: 170 | I14: 370 | J14: =SUM(H$5:H13) -> 1150 | K14: 经验水晶碎屑 | L14: 2002 | N14: 500 | O14: 对英雄使用后获得500点英雄经验。
A15: 11 | B15: 11 | C15: 1.261856613 | D15: 12.61856613 | E15: 1.261856613 | F15: 1 | G15: 1.261856613 | H15: 180 | I15: 379 | J15: =SUM(H$5:H14) -> 1320 | K15: 经验水晶结晶 | L15: 2003 | N15: 2000 | O15: 对英雄使用后获得2000点英雄经验。
A16: 12 | B16: 12 | C16: 1.291549361 | D16: 12.91549361 | E16: 1.291549361 | F16: 1 | G16: 1.291549361 | H16: 190 | I16: 387 | J16: =SUM(H$5:H15) -> 1500 | K16: 经验水晶晶簇 | L16: 2004 | N16: 10000 | O16: 对英雄使用后获得10000点英雄经验。
A17: 13 | B17: 13 | C17: 1.321940809 | D17: 13.21940809 | E17: 1.321940809 | F17: 1 | G17: 1.321940809 | H17: 200 | I17: 397 | J17: =SUM(H$5:H16) -> 1690
A18: 14 | B18: 14 | C18: 1.353047398 | D18: 13.53047398 | E18: 1.353047398 | F18: 1 | G18: 1.353047398 | H18: 210 | I18: 406 | J18: =SUM(H$5:H17) -> 1890
A19: 15 | B19: 15 | C19: 1.384885957 | D19: 13.84885957 | E19: 1.384885957 | F19: 1 | G19: 1.384885957 | H19: 220 | I19: 415 | J19: =SUM(H$5:H18) -> 2100
A20: 16 | B20: 16 | C20: 1.417473708 | D20: 14.17473708 | E20: 1.417473708 | F20: 1 | G20: 1.417473708 | H20: 240 | I20: 425 | J20: =SUM(H$5:H19) -> 2320
A21: 17 | B21: 17 | C21: 1.450828282 | D21: 14.50828282 | E21: 1.450828282 | F21: 1 | G21: 1.450828282 | H21: 250 | I21: 435 | J21: =SUM(H$5:H20) -> 2560
A22: 18 | B22: 18 | C22: 1.484967722 | D22: 14.84967722 | E22: 1.484967722 | F22: 1 | G22: 1.484967722 | H22: 270 | I22: 445 | J22: =SUM(H$5:H21) -> 2810
A23: 19 | B23: 19 | C23: 1.519910498 | D23: 15.19910498 | E23: 1.519910498 | F23: 1 | G23: 1.519910498 | H23: 280 | I23: 456 | J23: =SUM(H$5:H22) -> 3080
A24: 20 | B24: 20 | C24: 1.555675512 | D24: 15.55675512 | E24: 1.555675512 | F24: 1 | G24: 1.555675512 | H24: 300 | I24: 467 | J24: =SUM(H$5:H23) -> 3360
A25: 21 | B25: 21 | C25: 1.592282112 | D25: 15.92282112 | E25: 1.592282112 | F25: 1 | G25: 1.592282112 | H25: 320 | I25: 478 | J25: =SUM(H$5:H24) -> 3660
A26: 22 | B26: 22 | C26: 1.629750102 | D26: 16.29750102 | E26: 1.629750102 | F26: 1 | G26: 1.629750102 | H26: 330 | I26: 489 | J26: =SUM(H$5:H25) -> 3980
A27: 23 | B27: 23 | C27: 1.668099752 | D27: 16.68099752 | E27: 1.668099752 | F27: 1 | G27: 1.668099752 | H27: 350 | I27: 500 | J27: =SUM(H$5:H26) -> 4310
A28: 24 | B28: 24 | C28: 1.707351807 | D28: 17.07351807 | E28: 1.707351807 | F28: 1 | G28: 1.707351807 | H28: 380 | I28: 512 | J28: =SUM(H$5:H27) -> 4660
A29: 25 | B29: 25 | C29: 1.747527503 | D29: 17.47527503 | E29: 1.747527503 | F29: 1 | G29: 1.747527503 | H29: 400 | I29: 524 | J29: =SUM(H$5:H28) -> 5040
A30: 26 | B30: 26 | C30: 1.788648572 | D30: 17.88648572 | E30: 1.788648572 | F30: 1 | G30: 1.788648572 | H30: 420 | I30: 537 | J30: =SUM(H$5:H29) -> 5440
A31: 27 | B31: 27 | C31: 1.830737262 | D31: 18.30737262 | E31: 1.830737262 | F31: 1 | G31: 1.830737262 | H31: 450 | I31: 549 | J31: =SUM(H$5:H30) -> 5860
A32: 28 | B32: 28 | C32: 1.87381634 | D32: 18.7381634 | E32: 1.87381634 | F32: 1 | G32: 1.87381634 | H32: 470 | I32: 562 | J32: =SUM(H$5:H31) -> 6310
A33: 29 | B33: 29 | C33: 1.917909113 | D33: 19.17909113 | E33: 1.917909113 | F33: 1 | G33: 1.917909113 | H33: 500 | I33: 575 | J33: =SUM(H$5:H32) -> 6780
A34: 30 | B34: 30 | C34: 1.963039432 | D34: 19.63039432 | E34: 1.963039432 | F34: 1 | G34: 1.963039432 | H34: 530 | I34: 589 | J34: =SUM(H$5:H33) -> 7280
A35: 31 | B35: 31 | C35: 2.009231713 | D35: 20.09231713 | E35: 2.009231713 | F35: 1 | G35: 2.009231713 | H35: 560 | I35: 603 | J35: =SUM(H$5:H34) -> 7810
A36: 32 | B36: 32 | C36: 2.056510944 | D36: 20.56510944 | E36: 2.056510944 | F36: 1 | G36: 2.056510944 | H36: 590 | I36: 617 | J36: =SUM(H$5:H35) -> 8370
A37: 33 | B37: 33 | C37: 2.104902703 | D37: 21.04902703 | E37: 2.104902703 | F37: 1 | G37: 2.104902703 | H37: 630 | I37: 631 | J37: =SUM(H$5:H36) -> 8960
A38: 34 | B38: 34 | C38: 2.154433169 | D38: 21.54433169 | E38: 2.154433169 | F38: 1 | G38: 2.154433169 | H38: 670 | I38: 646 | J38: =SUM(H$5:H37) -> 9590
A39: 35 | B39: 35 | C39: 2.205129136 | D39: 22.05129136 | E39: 2.205129136 | F39: 1 | G39: 2.205129136 | H39: 710 | I39: 662 | J39: =SUM(H$5:H38) -> 10260
A40: 36 | B40: 36 | C40: 2.257018029 | D40: 22.57018029 | E40: 2.257018029 | F40: 1 | G40: 2.257018029 | H40: 750 | I40: 677 | J40: =SUM(H$5:H39) -> 10970
A41: 37 | B41: 37 | C41: 2.310127921 | D41: 23.10127921 | E41: 2.310127921 | F41: 1 | G41: 2.310127921 | H41: 790 | I41: 693 | J41: =SUM(H$5:H40) -> 11720
A42: 38 | B42: 38 | C42: 2.364487541 | D42: 23.64487541 | E42: 2.364487541 | F42: 1 | G42: 2.364487541 | H42: 840 | I42: 709 | J42: =SUM(H$5:H41) -> 12510
A43: 39 | B43: 39 | C43: 2.420126297 | D43: 24.20126297 | E43: 2.420126297 | F43: 1 | G43: 2.420126297 | H43: 890 | I43: 726 | J43: =SUM(H$5:H42) -> 13350
A44: 40 | B44: 40 | C44: 2.477074289 | D44: 24.77074289 | E44: 2.477074289 | F44: 1 | G44: 2.477074289 | H44: 940 | I44: 743 | J44: =SUM(H$5:H43) -> 14240
A45: 41 | B45: 41 | C45: 2.535362324 | D45: 25.35362324 | E45: 2.535362324 | F45: 1 | G45: 2.535362324 | H45: 1000 | I45: 761 | J45: =SUM(H$5:H44) -> 15180
A46: 42 | B46: 42 | C46: 2.595021935 | D46: 25.95021935 | E46: 2.595021935 | F46: 1 | G46: 2.595021935 | H46: 1060 | I46: 779 | J46: =SUM(H$5:H45) -> 16180
A47: 43 | B47: 43 | C47: 2.656085396 | D47: 26.56085396 | E47: 2.656085396 | F47: 1 | G47: 2.656085396 | H47: 1120 | I47: 797 | J47: =SUM(H$5:H46) -> 17240
A48: 44 | B48: 44 | C48: 2.718585742 | D48: 27.18585742 | E48: 2.718585742 | F48: 1 | G48: 2.718585742 | H48: 1190 | I48: 816 | J48: =SUM(H$5:H47) -> 18360
A49: 45 | B49: 45 | C49: 2.782556783 | D49: 27.82556783 | E49: 2.782556783 | F49: 1 | G49: 2.782556783 | H49: 1260 | I49: 835 | J49: =SUM(H$5:H48) -> 19550
A50: 46 | B50: 46 | C50: 2.848033126 | D50: 28.48033126 | E50: 2.848033126 | F50: 1 | G50: 2.848033126 | H50: 1330 | I50: 854 | J50: =SUM(H$5:H49) -> 20810
A51: 47 | B51: 47 | C51: 2.915050194 | D51: 29.15050194 | E51: 2.915050194 | F51: 1 | G51: 2.915050194 | H51: 1410 | I51: 875 | J51: =SUM(H$5:H50) -> 22140
A52: 48 | B52: 48 | C52: 2.98364424 | D52: 29.8364424 | E52: 2.98364424 | F52: 1 | G52: 2.98364424 | H52: 1490 | I52: 895 | J52: =SUM(H$5:H51) -> 23550
A53: 49 | B53: 49 | C53: 3.053852373 | D53: 30.53852373 | E53: 3.053852373 | F53: 1 | G53: 3.053852373 | H53: 1580 | I53: 916 | J53: =SUM(H$5:H52) -> 25040
A54: 50 | B54: 50 | C54: 3.125712573 | D54: 31.25712573 | E54: 3.125712573 | F54: 1 | G54: 3.125712573 | H54: 1670 | I54: 938 | J54: =SUM(H$5:H53) -> 26620
A55: 51 | B55: 51 | C55: 3.199263715 | D55: 31.99263715 | E55: 3.199263715 | F55: 1 | G55: 3.199263715 | H55: 1770 | I55: 960 | J55: =SUM(H$5:H54) -> 28290
A56: 52 | B56: 52 | C56: 3.27454559 | D56: 32.7454559 | E56: 3.27454559 | F56: 1 | G56: 3.27454559 | H56: 1880 | I56: 982 | J56: =SUM(H$5:H55) -> 30060
A57: 53 | B57: 53 | C57: 3.351598922 | D57: 33.51598922 | E57: 3.351598922 | F57: 1 | G57: 3.351598922 | H57: 1990 | I57: 1005 | J57: =SUM(H$5:H56) -> 31940
A58: 54 | B58: 54 | C58: 3.430465396 | D58: 34.30465396 | E58: 3.430465396 | F58: 1 | G58: 3.430465396 | H58: 2110 | I58: 1029 | J58: =SUM(H$5:H57) -> 33930
A59: 55 | B59: 55 | C59: 3.511187678 | D59: 35.11187678 | E59: 3.511187678 | F59: 1 | G59: 3.511187678 | H59: 2230 | I59: 1053 | J59: =SUM(H$5:H58) -> 36040
A60: 56 | B60: 56 | C60: 3.593809435 | D60: 35.93809435 | E60: 3.593809435 | F60: 1 | G60: 3.593809435 | H60: 2360 | I60: 1078 | J60: =SUM(H$5:H59) -> 38270
A61: 57 | B61: 57 | C61: 3.678375365 | D61: 36.78375365 | E61: 3.678375365 | F61: 1 | G61: 3.678375365 | H61: 2500 | I61: 1104 | J61: =SUM(H$5:H60) -> 40630
A62: 58 | B62: 58 | C62: 3.764931215 | D62: 37.64931215 | E62: 3.764931215 | F62: 1 | G62: 3.764931215 | H62: 2650 | I62: 1129 | J62: =SUM(H$5:H61) -> 43130
A63: 59 | B63: 59 | C63: 3.853523812 | D63: 38.53523812 | E63: 3.853523812 | F63: 1 | G63: 3.853523812 | H63: 2810 | I63: 1156 | J63: =SUM(H$5:H62) -> 45780
A64: 60 | B64: 60 | C64: 3.944201081 | D64: 39.44201081 | E64: 3.944201081 | F64: 1 | G64: 3.944201081 | H64: 2980 | I64: 1183 | J64: =SUM(H$5:H63) -> 48590
A65: 61 | B65: 61 | C65: 4.037012076 | D65: 40.37012076 | E65: 4.037012076 | F65: 1 | G65: 4.037012076 | H65: 3150 | I65: 1211 | J65: =SUM(H$5:H64) -> 51570
A66: 62 | B66: 62 | C66: 4.132007007 | D66: 41.32007007 | E66: 4.132007007 | F66: 1 | G66: 4.132007007 | H66: 3340 | I66: 1240 | J66: =SUM(H$5:H65) -> 54720
A67: 63 | B67: 63 | C67: 4.229237264 | D67: 42.29237264 | E67: 4.229237264 | F67: 1 | G67: 4.229237264 | H67: 3540 | I67: 1269 | J67: =SUM(H$5:H66) -> 58060
A68: 64 | B68: 64 | C68: 4.328755446 | D68: 43.28755446 | E68: 4.328755446 | F68: 1 | G68: 4.328755446 | H68: 3750 | I68: 1299 | J68: =SUM(H$5:H67) -> 61600
A69: 65 | B69: 65 | C69: 4.430615391 | D69: 44.30615391 | E69: 4.430615391 | F69: 1 | G69: =E69 -> 4.430615391 | H69: 3970 | I69: 1329 | J69: =SUM(H$5:H68) -> 65350
A70: 66 | B70: 66 | C70: 4.534872201 | D70: 45.34872201 | E70: =C70 -> 4.534872201 | F70: 1 | G70: 4.534872201 | H70: =IF(B70>99,0,ROUND(100*C70^M$4*0.1,0)*10) -> 4200 | I70: =ROUND(300*C70,0) -> 1360 | J70: =SUM(H$5:H69) -> 69320
A71: 67 | B71: 67 | C71: 4.641582279 | D71: 46.41582279 | E71: 4.641582279 | F71: 1 | G71: 4.641582279 | H71: 4450 | I71: 1392 | J71: =SUM(H$5:H70) -> 73520
A72: 68 | B72: 68 | C72: 4.750803352 | D72: 47.50803352 | E72: 4.750803352 | F72: 1 | G72: 4.750803352 | H72: 4710 | I72: 1425 | J72: =SUM(H$5:H71) -> 77970
A73: 69 | B73: 69 | C73: 4.862594505 | D73: 48.62594505 | E73: 4.862594505 | F73: 1 | G73: 4.862594505 | H73: 4990 | I73: 1459 | J73: =SUM(H$5:H72) -> 82680
A74: 70 | B74: 70 | C74: 4.977016217 | D74: 49.77016217 | E74: 4.977016217 | F74: 1 | G74: 4.977016217 | H74: 5290 | I74: 1493 | J74: =SUM(H$5:H73) -> 87670
A75: 71 | B75: 71 | C75: 5.094130385 | D75: 50.94130385 | E75: 5.094130385 | F75: 1 | G75: 5.094130385 | H75: 5600 | I75: 1528 | J75: =SUM(H$5:H74) -> 92960
A76: 72 | B76: 72 | C76: 5.214000367 | D76: 52.14000367 | E76: 5.214000367 | F76: 1 | G76: 5.214000367 | H76: 5930 | I76: 1564 | J76: =SUM(H$5:H75) -> 98560
A77: 73 | B77: 73 | C77: 5.33669101 | D77: 53.3669101 | E77: 5.33669101 | F77: 1 | G77: 5.33669101 | H77: 6290 | I77: 1601 | J77: =SUM(H$5:H76) -> 104490
A78: 74 | B78: 74 | C78: 5.462268686 | D78: 54.62268686 | E78: 5.462268686 | F78: 1 | G78: 5.462268686 | H78: 6660 | I78: 1639 | J78: =SUM(H$5:H77) -> 110780
A79: 75 | B79: 75 | C79: 5.590801331 | D79: 55.90801331 | E79: 5.590801331 | F79: 1 | G79: 5.590801331 | H79: 7050 | I79: 1677 | J79: =SUM(H$5:H78) -> 117440
A80: 76 | B80: 76 | C80: 5.722358477 | D80: 57.22358477 | E80: 5.722358477 | F80: 1 | G80: 5.722358477 | H80: 7470 | I80: 1717 | J80: =SUM(H$5:H79) -> 124490
A81: 77 | B81: 77 | C81: 5.857011294 | D81: 58.57011294 | E81: 5.857011294 | F81: 1 | G81: 5.857011294 | H81: 7910 | I81: 1757 | J81: =SUM(H$5:H80) -> 131960
A82: 78 | B82: 78 | C82: 5.994832627 | D82: 59.94832627 | E82: 5.994832627 | F82: 1 | G82: 5.994832627 | H82: 8380 | I82: 1798 | J82: =SUM(H$5:H81) -> 139870
A83: 79 | B83: 79 | C83: 6.135897033 | D83: 61.35897033 | E83: 6.135897033 | F83: 1 | G83: 6.135897033 | H83: 8880 | I83: 1841 | J83: =SUM(H$5:H82) -> 148250
A84: 80 | B84: 80 | C84: 6.280280827 | D84: 62.80280827 | E84: 6.280280827 | F84: 1 | G84: 6.280280827 | H84: 9400 | I84: 1884 | J84: =SUM(H$5:H83) -> 157130
A85: 81 | B85: 81 | C85: 6.428062115 | D85: 64.28062115 | E85: 6.428062115 | F85: 1 | G85: 6.428062115 | H85: 9960 | I85: 1928 | J85: =SUM(H$5:H84) -> 166530
A86: 82 | B86: 82 | C86: 6.579320844 | D86: 65.79320844 | E86: 6.579320844 | F86: 1 | G86: 6.579320844 | H86: 10550 | I86: 1974 | J86: =SUM(H$5:H85) -> 176490
A87: 83 | B87: 83 | C87: 6.734138843 | D87: 67.34138843 | E87: 6.734138843 | F87: 1 | G87: 6.734138843 | H87: 11170 | I87: 2020 | J87: =SUM(H$5:H86) -> 187040
A88: 84 | B88: 84 | C88: 6.892599864 | D88: 68.92599864 | E88: 6.892599864 | F88: 1 | G88: 6.892599864 | H88: 11830 | I88: 2068 | J88: =SUM(H$5:H87) -> 198210
A89: 85 | B89: 85 | C89: 7.054789632 | D89: 70.54789632 | E89: 7.054789632 | F89: 1 | G89: 7.054789632 | H89: 12530 | I89: 2116 | J89: =SUM(H$5:H88) -> 210040
A90: 86 | B90: 86 | C90: 7.220795886 | D90: 72.20795886 | E90: 7.220795886 | F90: 1 | G90: 7.220795886 | H90: 13280 | I90: 2166 | J90: =SUM(H$5:H89) -> 222570
A91: 87 | B91: 87 | C91: 7.390708434 | D91: 73.90708434 | E91: 7.390708434 | F91: 1 | G91: 7.390708434 | H91: 14060 | I91: 2217 | J91: =SUM(H$5:H90) -> 235850
A92: 88 | B92: 88 | C92: 7.564619195 | D92: 75.64619195 | E92: 7.564619195 | F92: 1 | G92: 7.564619195 | H92: 14890 | I92: 2269 | J92: =SUM(H$5:H91) -> 249910
A93: 89 | B93: 89 | C93: 7.742622249 | D93: 77.42622249 | E93: 7.742622249 | F93: 1 | G93: 7.742622249 | H93: 15780 | I93: 2323 | J93: =SUM(H$5:H92) -> 264800
A94: 90 | B94: 90 | C94: 7.924813893 | D94: 79.24813893 | E94: 7.924813893 | F94: 1 | G94: 7.924813893 | H94: 16710 | I94: 2377 | J94: =SUM(H$5:H93) -> 280580
A95: 91 | B95: 91 | C95: 8.111292689 | D95: 81.11292689 | E95: 8.111292689 | F95: 1 | G95: 8.111292689 | H95: 17700 | I95: 2433 | J95: =SUM(H$5:H94) -> 297290
A96: 92 | B96: 92 | C96: 8.302159517 | D96: 83.02159517 | E96: 8.302159517 | F96: 1 | G96: 8.302159517 | H96: 18750 | I96: 2491 | J96: =SUM(H$5:H95) -> 314990
A97: 93 | B97: 93 | C97: 8.497517633 | D97: 84.97517633 | E97: 8.497517633 | F97: 1 | G97: 8.497517633 | H97: 19860 | I97: 2549 | J97: =SUM(H$5:H96) -> 333740
A98: 94 | B98: 94 | C98: 8.69747272 | D98: 86.9747272 | E98: 8.69747272 | F98: 1 | G98: 8.69747272 | H98: 21030 | I98: 2609 | J98: =SUM(H$5:H97) -> 353600
A99: 95 | B99: 95 | C99: 8.902132951 | D99: 89.02132951 | E99: 8.902132951 | F99: 1 | G99: 8.902132951 | H99: 22280 | I99: 2671 | J99: =SUM(H$5:H98) -> 374630
A100: 96 | B100: 96 | C100: 9.111609041 | D100: 91.11609041 | E100: 9.111609041 | F100: 1 | G100: 9.111609041 | H100: 23590 | I100: 2733 | J100: =SUM(H$5:H99) -> 396910
A101: 97 | B101: 97 | C101: 9.326014313 | D101: 93.26014313 | E101: 9.326014313 | F101: 1 | G101: 9.326014313 | H101: 24990 | I101: 2798 | J101: =SUM(H$5:H100) -> 420500
A102: 98 | B102: 98 | C102: 9.545464756 | D102: 95.45464756 | E102: 9.545464756 | F102: 1 | G102: 9.545464756 | H102: 26470 | I102: 2864 | J102: =SUM(H$5:H101) -> 445490
A103: 99 | B103: 99 | C103: 9.770079087 | D103: 97.70079087 | E103: 9.770079087 | F103: 1 | G103: 9.770079087 | H103: 28040 | I103: 2931 | J103: =SUM(H$5:H102) -> 471960
A104: 100 | B104: 100 | C104: 10.1 | D104: 100 | E104: 10.1 | F104: 1 | G104: 10.1 | H104: =ROUND(100*C104^M$4*0.1,0)*10 -> 30440 | I104: 3030 | J104: =SUM(H$5:H103) -> 500000
A105: 101 | B105: 101 | C105: 10.2 | D105: 101 | E105: =C105 -> 10.2 | F105: 1 | G105: 10.2 | H105: =ROUND(100*C105^M$4*0.1,0)*10 -> 31190 | I105: 3060
A106: 102 | B106: 102 | C106: 10.3 | D106: 102 | E106: 10.3 | F106: 1 | G106: 10.3 | H106: 31950 | I106: 3090
A107: 103 | B107: 103 | C107: 10.4 | D107: 103 | E107: 10.4 | F107: 1 | G107: 10.4 | H107: 32720 | I107: 3120
A108: 104 | B108: 104 | C108: 10.5 | D108: 104 | E108: 10.5 | F108: 1 | G108: 10.5 | H108: 33510 | I108: 3150
A109: 105 | B109: 105 | C109: 10.6 | D109: 105 | E109: 10.6 | F109: 1 | G109: 10.6 | H109: 34300 | I109: 3180
A110: 106 | B110: 106 | C110: 10.7 | D110: 106 | E110: 10.7 | F110: 1 | G110: 10.7 | H110: 35110 | I110: 3210
A111: 107 | B111: 107 | C111: 10.8 | D111: 107 | E111: 10.8 | F111: 1 | G111: 10.8 | H111: 35920 | I111: 3240
A112: 108 | B112: 108 | C112: 10.9 | D112: 108 | E112: 10.9 | F112: 1 | G112: 10.9 | H112: 36750 | I112: 3270
A113: 109 | B113: 109 | C113: 11 | D113: 109 | E113: 11 | F113: 1 | G113: 11 | H113: 37590 | I113: 3300
A114: 110 | B114: 110 | C114: 11.1 | D114: 110 | E114: 11.1 | F114: 1 | G114: 11.1 | H114: 38440 | I114: 3330
A115: 111 | B115: 111 | C115: 11.2 | D115: 111 | E115: 11.2 | F115: 1 | G115: 11.2 | H115: 39300 | I115: 3360
A116: 112 | B116: 112 | C116: 11.3 | D116: 112 | E116: 11.3 | F116: 1 | G116: 11.3 | H116: 40180 | I116: 3390
A117: 113 | B117: 113 | C117: 11.4 | D117: 113 | E117: 11.4 | F117: 1 | G117: 11.4 | H117: 41060 | I117: 3420
A118: 114 | B118: 114 | C118: 11.5 | D118: 114 | E118: 11.5 | F118: 1 | G118: 11.5 | H118: 41960 | I118: 3450
A119: 115 | B119: 115 | C119: 11.6 | D119: 115 | E119: 11.6 | F119: 1 | G119: 11.6 | H119: 42870 | I119: 3480
A120: 116 | B120: 116 | C120: 11.7 | D120: 116 | E120: 11.7 | F120: 1 | G120: 11.7 | H120: 43780 | I120: 3510
A121: 117 | B121: 117 | C121: 11.8 | D121: 117 | E121: 11.8 | F121: 1 | G121: 11.8 | H121: 44720 | I121: 3540
A122: 118 | B122: 118 | C122: 11.9 | D122: 118 | E122: 11.9 | F122: 1 | G122: 11.9 | H122: 45660 | I122: 3570
A123: 119 | B123: 119 | C123: 12 | D123: 119 | E123: 12 | F123: 1 | G123: 12 | H123: 46610 | I123: 3600
A124: 120 | B124: 120 | C124: 12.1 | D124: 120 | E124: 12.1 | F124: 1 | G124: 12.1 | H124: 47580 | I124: 3630
A125: 121 | B125: 121 | C125: 12.2 | D125: 121 | E125: 12.2 | F125: 1 | G125: 12.2 | H125: 48560 | I125: 3660
A126: 122 | B126: 122 | C126: 12.3 | D126: 122 | E126: 12.3 | F126: 1 | G126: 12.3 | H126: 49550 | I126: 3690
A127: 123 | B127: 123 | C127: 12.4 | D127: 123 | E127: 12.4 | F127: 1 | G127: 12.4 | H127: 50550 | I127: 3720
A128: 124 | B128: 124 | C128: 12.5 | D128: 124 | E128: 12.5 | F128: 1 | G128: 12.5 | H128: 51560 | I128: 3750
A129: 125 | B129: 125 | C129: 12.6 | D129: 125 | E129: 12.6 | F129: 1 | G129: 12.6 | H129: 52590 | I129: 3780
A130: 126 | B130: 126 | C130: 12.7 | D130: 126 | E130: 12.7 | F130: 1 | G130: 12.7 | H130: 53630 | I130: 3810
A131: 127 | B131: 127 | C131: 12.8 | D131: 127 | E131: =C131 -> 12.8 | F131: 1 | G131: 12.8 | H131: 54680 | I131: 3840
A132: 128 | B132: 128 | C132: 12.9 | D132: 128 | E132: 12.9 | F132: 1 | G132: 12.9 | H132: 55740 | I132: 3870
A133: 129 | B133: 129 | C133: 13 | D133: 129 | E133: 13 | F133: 1 | G133: =E133 -> 13 | H133: 56820 | I133: 3900
A134: 130 | B134: 130 | C134: 13.1 | D134: 130 | E134: 13.1 | F134: 1 | G134: =E134 -> 13.1 | H134: 57900 | I134: =ROUND(300*C134,0) -> 3930
A135: 131 | B135: 131 | C135: 13.2 | D135: 131 | E135: =C135 -> 13.2 | F135: 1 | G135: =E135 -> 13.2 | H135: 59000 | I135: =ROUND(300*C135,0) -> 3960
A136: 132 | B136: 132 | C136: 13.3 | D136: 132 | E136: 13.3 | F136: 1 | G136: 13.3 | H136: 60110 | I136: 3990
A137: 133 | B137: 133 | C137: 13.4 | D137: 133 | E137: 13.4 | F137: 1 | G137: 13.4 | H137: =ROUND(100*C137^M$4*0.1,0)*10 -> 61240 | I137: 4020
A138: 134 | B138: 134 | C138: 13.5 | D138: 134 | E138: 13.5 | F138: 1 | G138: 13.5 | H138: 62370 | I138: 4050
A139: 135 | B139: 135 | C139: 13.6 | D139: 135 | E139: 13.6 | F139: 1 | G139: 13.6 | H139: 63520 | I139: 4080
A140: 136 | B140: 136 | C140: 13.7 | D140: 136 | E140: 13.7 | F140: 1 | G140: 13.7 | H140: 64680 | I140: 4110
A141: 137 | B141: 137 | C141: 13.8 | D141: 137 | E141: 13.8 | F141: 1 | G141: 13.8 | H141: 65860 | I141: 4140
A142: 138 | B142: 138 | C142: 13.9 | D142: 138 | E142: 13.9 | F142: 1 | G142: 13.9 | H142: 67040 | I142: 4170
A143: 139 | B143: 139 | C143: 14 | D143: 139 | E143: 14 | F143: 1 | G143: 14 | H143: 68240 | I143: 4200
A144: 140 | B144: 140 | C144: 14.1 | D144: 140 | E144: 14.1 | F144: 1 | G144: 14.1 | H144: 69450 | I144: 4230
A145: 141 | B145: 141 | C145: 14.2 | D145: 141 | E145: 14.2 | F145: 1 | G145: 14.2 | H145: 70680 | I145: 4260
A146: 142 | B146: 142 | C146: 14.3 | D146: 142 | E146: 14.3 | F146: 1 | G146: 14.3 | H146: 71920 | I146: 4290
A147: 143 | B147: 143 | C147: 14.4 | D147: 143 | E147: 14.4 | F147: 1 | G147: 14.4 | H147: 73170 | I147: 4320
A148: 144 | B148: 144 | C148: 14.5 | D148: 144 | E148: 14.5 | F148: 1 | G148: 14.5 | H148: 74430 | I148: 4350
A149: 145 | B149: 145 | C149: 14.6 | D149: 145 | E149: 14.6 | F149: 1 | G149: 14.6 | H149: 75700 | I149: 4380
A150: 146 | B150: 146 | C150: 14.7 | D150: 146 | E150: 14.7 | F150: 1 | G150: 14.7 | H150: 76990 | I150: 4410
A151: 147 | B151: 147 | C151: 14.8 | D151: 147 | E151: 14.8 | F151: 1 | G151: 14.8 | H151: 78290 | I151: 4440
A152: 148 | B152: 148 | C152: 14.9 | D152: 148 | E152: 14.9 | F152: 1 | G152: 14.9 | H152: 79610 | I152: 4470
A153: 149 | B153: 149 | C153: 15 | D153: 149 | E153: 15 | F153: 1 | G153: 15 | H153: 80940 | I153: 4500
A154: 150 | B154: 150 | C154: 15.1 | D154: 150 | E154: 15.1 | F154: 1 | G154: 15.1 | H154: 82280 | I154: 4530
A155: 151 | B155: 151 | C155: 15.2 | D155: 151 | E155: 15.2 | F155: 1 | G155: 15.2 | H155: 83630 | I155: 4560
A156: 152 | B156: 152 | C156: 15.3 | D156: 152 | E156: 15.3 | F156: 1 | G156: 15.3 | H156: 85000 | I156: 4590
A157: 153 | B157: 153 | C157: 15.4 | D157: 153 | E157: 15.4 | F157: 1 | G157: 15.4 | H157: 86380 | I157: 4620
A158: 154 | B158: 154 | C158: 15.5 | D158: 154 | E158: 15.5 | F158: 1 | G158: 15.5 | H158: 87770 | I158: 4650
A159: 155 | B159: 155 | C159: 15.6 | D159: 155 | E159: 15.6 | F159: 1 | G159: 15.6 | H159: 89180 | I159: 4680
A160: 156 | B160: 156 | C160: 15.7 | D160: 156 | E160: 15.7 | F160: 1 | G160: 15.7 | H160: 90600 | I160: 4710
A161: 157 | B161: 157 | C161: 15.8 | D161: 157 | E161: 15.8 | F161: 1 | G161: 15.8 | H161: 92030 | I161: 4740
A162: 158 | B162: 158 | C162: 15.9 | D162: 158 | E162: 15.9 | F162: 1 | G162: 15.9 | H162: 93480 | I162: 4770
A163: 159 | B163: 159 | C163: 16 | D163: 159 | E163: 16 | F163: 1 | G163: 16 | H163: 94940 | I163: 4800
A164: 160 | B164: 160 | C164: 16.1 | D164: 160 | E164: 16.1 | F164: 1 | G164: 16.1 | H164: 96410 | I164: 4830
A165: 161 | B165: 161 | C165: 16.2 | D165: 161 | E165: 16.2 | F165: 1 | G165: 16.2 | H165: 97900 | I165: 4860
A166: 162 | B166: 162 | C166: 16.3 | D166: 162 | E166: 16.3 | F166: 1 | G166: 16.3 | H166: 99400 | I166: 4890
A167: 163 | B167: 163 | C167: 16.4 | D167: 163 | E167: =C167 -> 16.4 | F167: 1 | G167: =E167 -> 16.4 | H167: 100920 | I167: =ROUND(300*C167,0) -> 4920
A168: 164 | B168: 164 | C168: 16.5 | D168: 164 | E168: 16.5 | F168: 1 | G168: 16.5 | H168: 102450 | I168: 4950
A169: 165 | B169: 165 | C169: 16.6 | D169: 165 | E169: 16.6 | F169: 1 | G169: 16.6 | H169: =ROUND(100*C169^M$4*0.1,0)*10 -> 103990 | I169: 4980
A170: 166 | B170: 166 | C170: 16.7 | D170: 166 | E170: 16.7 | F170: 1 | G170: 16.7 | H170: 105540 | I170: 5010
A171: 167 | B171: 167 | C171: 16.8 | D171: 167 | E171: 16.8 | F171: 1 | G171: 16.8 | H171: 107110 | I171: 5040
A172: 168 | B172: 168 | C172: 16.9 | D172: 168 | E172: 16.9 | F172: 1 | G172: 16.9 | H172: 108700 | I172: 5070
A173: 169 | B173: 169 | C173: 17 | D173: 169 | E173: 17 | F173: 1 | G173: 17 | H173: 110290 | I173: 5100
A174: 170 | B174: 170 | C174: 17.1 | D174: 170 | E174: 17.1 | F174: 1 | G174: 17.1 | H174: 111910 | I174: 5130
A175: 171 | B175: 171 | C175: 17.2 | D175: 171 | E175: 17.2 | F175: 1 | G175: 17.2 | H175: 113530 | I175: 5160
A176: 172 | B176: 172 | C176: 17.3 | D176: 172 | E176: 17.3 | F176: 1 | G176: 17.3 | H176: 115170 | I176: 5190
A177: 173 | B177: 173 | C177: 17.4 | D177: 173 | E177: 17.4 | F177: 1 | G177: 17.4 | H177: 116820 | I177: 5220
A178: 174 | B178: 174 | C178: 17.5 | D178: 174 | E178: 17.5 | F178: 1 | G178: 17.5 | H178: 118490 | I178: 5250
A179: 175 | B179: 175 | C179: 17.6 | D179: 175 | E179: 17.6 | F179: 1 | G179: 17.6 | H179: 120170 | I179: 5280
A180: 176 | B180: 176 | C180: 17.7 | D180: 176 | E180: 17.7 | F180: 1 | G180: 17.7 | H180: 121870 | I180: 5310
A181: 177 | B181: 177 | C181: 17.8 | D181: 177 | E181: 17.8 | F181: 1 | G181: 17.8 | H181: 123580 | I181: 5340
A182: 178 | B182: 178 | C182: 17.9 | D182: 178 | E182: 17.9 | F182: 1 | G182: 17.9 | H182: 125300 | I182: 5370
A183: 179 | B183: 179 | C183: 18 | D183: 179 | E183: 18 | F183: 1 | G183: 18 | H183: 127040 | I183: 5400
A184: 180 | B184: 180 | C184: 18.1 | D184: 180 | E184: 18.1 | F184: 1 | G184: 18.1 | H184: 128790 | I184: 5430
A185: 181 | B185: 181 | C185: 18.2 | D185: 181 | E185: 18.2 | F185: 1 | G185: 18.2 | H185: 130560 | I185: 5460
A186: 182 | B186: 182 | C186: 18.3 | D186: 182 | E186: 18.3 | F186: 1 | G186: 18.3 | H186: 132340 | I186: 5490
A187: 183 | B187: 183 | C187: 18.4 | D187: 183 | E187: 18.4 | F187: 1 | G187: 18.4 | H187: 134130 | I187: 5520
A188: 184 | B188: 184 | C188: 18.5 | D188: 184 | E188: 18.5 | F188: 1 | G188: 18.5 | H188: 135940 | I188: 5550
A189: 185 | B189: 185 | C189: 18.6 | D189: 185 | E189: 18.6 | F189: 1 | G189: 18.6 | H189: 137770 | I189: 5580
A190: 186 | B190: 186 | C190: 18.7 | D190: 186 | E190: 18.7 | F190: 1 | G190: 18.7 | H190: 139610 | I190: 5610
A191: 187 | B191: 187 | C191: 18.8 | D191: 187 | E191: 18.8 | F191: 1 | G191: 18.8 | H191: 141460 | I191: 5640
A192: 188 | B192: 188 | C192: 18.9 | D192: 188 | E192: 18.9 | F192: 1 | G192: 18.9 | H192: 143330 | I192: 5670
A193: 189 | B193: 189 | C193: 19 | D193: 189 | E193: 19 | F193: 1 | G193: 19 | H193: 145210 | I193: 5700
A194: 190 | B194: 190 | C194: 19.1 | D194: 190 | E194: 19.1 | F194: 1 | G194: 19.1 | H194: 147110 | I194: 5730
A195: 191 | B195: 191 | C195: 19.2 | D195: 191 | E195: 19.2 | F195: 1 | G195: 19.2 | H195: 149020 | I195: 5760
A196: 192 | B196: 192 | C196: 19.3 | D196: 192 | E196: 19.3 | F196: 1 | G196: 19.3 | H196: 150950 | I196: 5790
A197: 193 | B197: 193 | C197: 19.4 | D197: 193 | E197: 19.4 | F197: 1 | G197: 19.4 | H197: 152890 | I197: 5820
A198: 194 | B198: 194 | C198: 19.5 | D198: 194 | E198: 19.5 | F198: 1 | G198: 19.5 | H198: 154840 | I198: 5850
A199: 195 | B199: 195 | C199: 19.6 | D199: 195 | E199: =C199 -> 19.6 | F199: 1 | G199: =E199 -> 19.6 | H199: 156810 | I199: =ROUND(300*C199,0) -> 5880
A200: 196 | B200: 196 | C200: 19.7 | D200: 196 | E200: 19.7 | F200: 1 | G200: 19.7 | H200: 158800 | I200: 5910
... 104 more rows
